[Event "18th Charleroi Open-A 2019"]
[Site "Charleroi"]
[Date "2019.07.30"]
[Round "5.25"]
[White "Hafner, Christian"]
[Black "Barbier, Astrid"]
[Result "1-0"]
[ECO "B38"]
[WhiteElo "2071"]
[BlackElo "1941"]
[Annotator "NA"]
[PlyCount "91"]
[EventDate "2019.07.22"]
[EventType "swiss"]
[EventCountry "BEL"]
[SourceTitle "playchess.com"]
[Source "ChessBase"]
[SourceQuality "1"]
[TimeControl "40/5400+30:1800+30"]

1. e4 {[%emt 0:00:00]} c5 {[%emt 0:00:00]} 2. Nf3 {[%emt 0:00:06]} g6 {[%emt 0:00:00]} 3. d4 {[%emt 0:00:22]} cxd4 {[%emt 0:00:00]} 4. Nxd4 {[%emt 0:00:08]} Nc6 {[%emt 0:00:02]} 5. c4 {[%emt 0:00:38]} Bg7 {[%emt 0:01:25]} 6. Be3 {[%emt 0:00:25]} Nf6 {[%emt 0:00:43]} 7. Nc3 {[%emt 0:00:20]} O-O {[%emt 0:00:52]} 8. Be2 {[%emt 1:32:01]} d6 {[%emt 0:01:36]} 9. O-O {[%emt 0:00:17]} Nd7 {[%emt 0:02:07]} 10. Qd2 {[%emt 0:00:00]} Nxd4 {[%emt 0:06:40]} 11. Bxd4 {[%emt 0:01:00]} Nc5 {[%emt 0:01:12]} 12. Bxg7 {[%emt 0:00:00]} Kxg7 {[%emt 0:00:27]} 13. f4 {[%emt 0:00:00]} b6 {[%emt 0:07:23]} 14. f5 {[%emt 0:00:00]} Bb7 {[%emt 0:03:56]} 15. Rf4 {[%emt 0:00:00]} g5 {[%emt 0:12:07]} 16. Rg4 {[%emt 0:00:00]} f6 {[%emt 0:03:27]} 17. h4 {[%emt 0:00:00]} Kh8 {[%emt 0:25:33]} 18. hxg5 {[%emt 0:00:00]} fxg5 {[%emt 0:00:49]} 19. Qd4+ {[%emt 0:00:00]} e5 {[%emt 0:04:18]} 20. Qd2 {[%emt 0:00:00]} Rg8 {[%emt 0:03:08]} 21. Bf3 {[%emt 0:00:00]} Bc6 {[%emt 0:04:50]} 22. b4 {[%emt 0:00:00]} Nb7 {[%emt 0:03:05]} 23. Kf2 {[%emt 0:07:00]} a6 {[%emt 0:02:22]} 24. a4 {[%emt 0:00:00]} Rc8 {[%emt 0:03:16]} 25. Rh1 {[%emt 0:00:00]} Bd7 {[%emt 0:02:33]} 26. Be2 {[%emt 0:08:30]} a5 {[%emt 0:11:09]} 27. b5 {[%emt 0:09:00]} Nc5 {[%emt 0:00:00]} 28. Qxd6 {[%emt 0:00:00]} Re8 {[%emt 0:00:00]} 29. Nd5 {[%emt 0:00:00]} Bxf5 {[%emt 0:00:00]} 30. Qxd8 {[%emt 0:00:00]} Nxe4+ {[%emt 0:00:00]} 31. Rxe4 {[%emt 0:00:00]} Rcxd8 {[%emt 0:00:10]} 32. Re3 {[%emt 0:00:00]} Rd6 {[%emt 0:00:33]} 33. Rg3 {[%emt 0:00:00]} Be4 {[%emt 0:01:09]} 34. Bd3 {[%emt 0:00:00]} Bxd3 {[%emt 0:00:17]} 35. Rxd3 {[%emt 0:00:00]} Kg7 {[%emt 0:00:22]} 36. Re1 {[%emt 0:04:30]} Rf8+ {[%emt 0:00:56]} 37. Kg3 {[%emt 0:00:00]} Re6 {[%emt 0:00:53]} 38. Rde3 {[%emt 0:00:15]} Rf5 {[%emt 0:00:24]} 39. Rf3 {[%emt 0:01:43]} Kg6 {[%emt 0:00:49]} 40. Ref1 {[%emt 0:01:24]} Rxf3+ {[%emt 0:00:22]} 41. Kxf3 {[%emt 0:31:02]} h5 {[%emt 0:04:44]} 42. Ke4 {[%emt 0:00:00]} h4 {[%emt 0:00:21]} 43. Rf5 {[%emt 0:00:00]} Kh5 {[%emt 0:02:28]} 44. Rf6 {[%emt 0:00:00]} Re8 {[%emt 0:00:33]} 45. Rxb6 {[%emt 0:00:00]} Rf8 {[%emt 0:02:48]} 46. Nf6+ {[%emt 0:05:06]} 1-0

[Event "18th Charleroi Open-A 2019"]
[Site "Charleroi"]
[Date "2019.07.30"]
[Round "5.27"]
[White "Dugailliez, Guy"]
[Black "Partoens, Remi"]
[Result "0-1"]
[ECO "C33"]
[WhiteElo "2063"]
[BlackElo "1957"]
[Annotator "NA"]
[PlyCount "67"]
[EventDate "2019.07.22"]
[EventType "swiss"]
[EventCountry "BEL"]
[SourceTitle "playchess.com"]
[Source "ChessBase"]
[SourceQuality "1"]
[TimeControl "40/5400+30:1800+30"]

1. e4 {[%emt 0:00:00]} e5 {[%emt 0:00:00]} 2. f4 {[%emt 0:02:56]} exf4 {[%emt 0:00:27]} 3. Bc4 {[%emt 0:00:15]} Qh4+ {[%emt 0:01:51]} 4. Kf1 {[%emt 0:00:17]} d6 {[%emt 0:00:41]} 5. Nf3 {[%emt 0:01:18]} Qh6 {[%emt 0:01:22]} 6. Nc3 {[%emt 0:01:31]} Nf6 {[%emt 0:03:20]} 7. d4 {[%emt 0:01:27]} Be6 {[%emt 0:00:27]} 8. Qe2 {[%emt 0:03:42]} Nh5 {[%emt 0:07:36]} 9. Kg1 {[%emt 0:05:36]} Nd7 {[%emt 0:08:23]} 10. Bxe6 {[%emt 0:17:22]} fxe6 {[%emt 0:00:27]} 11. g4 {[%emt 0:01:26]} Qg6 {[%emt 0:04:28]} 12. Qg2 {[%emt 0:11:59]} Nhf6 {[%emt 0:02:41]} 13. g5 {[%emt 0:03:13]} Nh5 {[%emt 0:03:46]} 14. Qg4 {[%emt 0:14:43]} Be7 {[%emt 0:06:35]} 15. Bxf4 {[%emt 0:04:52]} Ndf6 {[%emt 0:03:25]} 16. Qh4 {[%emt 0:07:00]} O-O {[%emt 0:13:56]} 17. Bg3 {[%emt 0:03:51]} Nxe4 {[%emt 0:02:30]} 18. Nxe4 {[%emt 0:01:17]} Rxf3 {[%emt 0:00:38]} 19. Qg4 {[%emt 0:01:26]} Rf5 {[%emt 0:02:50]} 20. h4 {[%emt 0:03:50]} Raf8 {[%emt 0:03:10]} 21. Re1 {[%emt 0:01:22]} d5 {[%emt 0:08:04]} 22. Nc5 {[%emt 0:02:43]} Nxg3 {[%emt 0:01:27]} 23. Qxg3 {[%emt 0:00:48]} Bxc5 {[%emt 0:06:06]} 24. dxc5 {[%emt 0:00:06]} Qh5 {[%emt 0:00:23]} 25. Rh2 {[%emt 0:02:56]} Rf4 {[%emt 0:01:30]} 26. Qh3 {[%emt 0:01:03]} R8f5 {[%emt 0:01:17]} 27. Qe3 {[%emt 0:03:43]} Re4 {[%emt 0:00:35]} 28. Qd2 {[%emt 0:00:23]} Qf3 {[%emt 0:01:55]} 29. Rg2 {[%emt 0:01:23]} Rxh4 {[%emt 0:00:50]} 30. Qe2 {[%emt 0:01:25]} Re4 {[%emt 0:00:50]} 31. Qxf3 {[%emt 0:00:24]} Rxe1+ {[%emt 0:00:08]} 32. Kf2 {[%emt 0:00:07]} Ree5 {[%emt 0:01:18]} 33. Qxf5 {[%emt 0:00:38]} Rxf5+ {[%emt 0:00:57]} 34. Ke3 {[%emt 0:00:04]} 0-1

[Event "18th Charleroi Open-A 2019"]
[Site "Charleroi"]
[Date "2019.07.30"]
[Round "5.28"]
[White "Fischer, Julie"]
[Black "Van Haelst, Raymond"]
[Result "1-0"]
[ECO "C22"]
[WhiteElo "2050"]
[BlackElo "1947"]
[Annotator "NA"]
[PlyCount "57"]
[EventDate "2019.07.22"]
[EventType "swiss"]
[EventCountry "BEL"]
[SourceTitle "playchess.com"]
[Source "ChessBase"]
[SourceQuality "1"]
[TimeControl "40/5400+30:1800+30"]

1. e4 {[%emt 0:11:32]} e5 {[%emt 0:00:00]} 2. d4 {[%emt 0:00:28]} exd4 {[%emt 0:00:00]} 3. Qxd4 {[%emt 0:00:12]} Nc6 {[%emt 0:00:03]} 4. Qe3 {[%emt 0:00:05]} Nf6 {[%emt 0:00:26]} 5. h3 {[%emt 0:02:23]} Bb4+ {[%emt 1:32:01]} 6. c3 {[%emt 0:00:55]} Ba5 {[%emt 0:00:18]} 7. Bd3 {[%emt 0:06:41]} Qe7 {[%emt 0:04:06]} 8. Nf3 {[%emt 0:06:20]} Bb6 {[%emt 0:03:42]} 9. Qe2 {[%emt 0:02:01]} d6 {[%emt 0:07:36]} 10. Na3 {[%emt 0:01:36]} a6 {[%emt 0:09:36]} 11. Bg5 {[%emt 1:03:17]} h6 {[%emt 0:03:50]} 12. Bh4 {[%emt 0:03:45]} Ba7 {[%emt 0:02:32]} 13. Nc4 {[%emt 0:00:59]} g5 {[%emt 0:02:47]} 14. Bg3 {[%emt 0:00:04]} b5 {[%emt 0:14:41]} 15. Ncd2 {[%emt 0:00:06]} Nd7 {[%emt 0:01:47]} 16. h4 {[%emt 0:03:51]} g4 {[%emt 0:00:21]} 17. Nh2 {[%emt 0:00:17]} Nde5 {[%emt 0:01:17]} 18. Bc2 {[%emt 0:53:47]} h5 {[%emt 0:02:28]} 19. Nhf1 {[%emt 0:04:48]} Be6 {[%emt 0:02:12]} 20. Ne3 {[%emt 0:01:57]} Bxe3 {[%emt 0:01:06]} 21. Qxe3 {[%emt 0:00:22]} Nc4 {[%emt 0:00:47]} 22. Nxc4 {[%emt 0:00:19]} Bxc4 {[%emt 0:00:54]} 23. b3 {[%emt 0:01:09]} Be6 {[%emt 0:00:21]} 24. O-O {[%emt 0:04:15]} Ne5 {[%emt 0:02:49]} 25. a4 {[%emt 0:00:17]} bxa4 {[%emt 0:00:54]} 26. Rxa4 {[%emt 0:00:17]} Bd7 {[%emt 0:00:43]} 27. Ra5 {[%emt 0:00:40]} Bc6 {[%emt 0:05:02]} 28. Bxe5 {[%emt 0:02:20]} dxe5 {[%emt 0:00:26]} 29. Qc5 {[%emt 0:00:08]} 1-0

[Event "18th Charleroi Open-A 2019"]
[Site "Charleroi"]
[Date "2019.07.30"]
[Round "5.30"]
[White "Dierckens, Sarah"]
[Black "Zamparo, Sergio"]
[Result "1/2-1/2"]
[ECO "B07"]
[WhiteElo "1770"]
[BlackElo "2031"]
[Annotator "NA"]
[PlyCount "52"]
[EventDate "2019.07.22"]
[EventType "swiss"]
[EventCountry "BEL"]
[SourceTitle "playchess.com"]
[Source "ChessBase"]
[SourceQuality "1"]
[TimeControl "40/5400+30:1800+30"]

1. e4 {[%emt 0:05:27]} d6 {[%emt 0:00:19]} 2. d4 {[%emt 0:00:22]} Nf6 {[%emt 0:00:06]} 3. Nc3 {[%emt 0:00:22]} e5 {[%emt 0:00:52]} 4. dxe5 {[%emt 0:00:53]} dxe5 {[%emt 0:00:06]} 5. Qxd8+ {[%emt 0:00:04]} Kxd8 {[%emt 0:00:06]} 6. Nf3 {[%emt 0:00:12]} Bd6 {[%emt 0:00:33]} 7. Bc4 {[%emt 0:02:46]} Be6 {[%emt 0:00:09]} 8. Bxe6 {[%emt 0:00:09]} fxe6 {[%emt 0:00:05]} 9. h3 {[%emt 0:01:24]} Ke7 {[%emt 0:00:43]} 10. Be3 {[%emt 0:02:04]} Nc6 {[%emt 0:01:07]} 11. O-O-O {[%emt 0:00:19]} a6 {[%emt 0:00:32]} 12. Nd2 {[%emt 0:01:11]} b5 {[%emt 0:01:58]} 13. g4 {[%emt 0:02:36]} Na5 {[%emt 0:13:58]} 14. a3 {[%emt 0:01:50]} b4 {[%emt 0:01:46]} 15. axb4 {[%emt 0:02:32]} Bxb4 {[%emt 0:00:27]} 16. Na4 {[%emt 0:02:12]} Rhd8 {[%emt 0:07:01]} 17. c3 {[%emt 0:03:22]} Bd6 {[%emt 0:00:39]} 18. Nc5 {[%emt 0:00:59]} Kf7 {[%emt 0:09:01]} 19. Kc2 {[%emt 0:01:30]} Bxc5 {[%emt 0:11:38]} 20. Bxc5 {[%emt 0:00:06]} Nc6 {[%emt 0:00:28]} 21. g5 {[%emt 0:03:24]} Nh5 {[%emt 0:08:30]} 22. Nc4 {[%emt 0:02:28]} Ke8 {[%emt 0:12:24]} 23. Rxd8+ {[%emt 0:05:22]} Kxd8 {[%emt 0:00:26]} 24. Ra1 {[%emt 0:00:19]} Kc8 {[%emt 0:00:19]} 25. b4 {[%emt 0:01:11]} Kb7 {[%emt 0:01:00]} 26. Rd1 {[%emt 0:04:27]} Kc8 {[%emt 0:00:22]} 1/2-1/2

[Event "18th Charleroi Open-A 2019"]
[Site "Charleroi"]
[Date "2019.07.30"]
[Round "5.31"]
[White "Damlakhi, Mahmoud"]
[Black "Moerman, Thomas"]
[Result "0-1"]
[ECO "D24"]
[WhiteElo "2008"]
[BlackElo "1931"]
[Annotator "NA"]
[PlyCount "56"]
[EventDate "2019.07.22"]
[EventType "swiss"]
[EventCountry "BEL"]
[SourceTitle "playchess.com"]
[Source "ChessBase"]
[SourceQuality "1"]
[TimeControl "40/5400+30:1800+30"]

1. d4 {[%emt 0:01:23]} Nf6 {[%emt 0:00:00]} 2. Nf3 {[%emt 0:00:05]} d5 {[%emt 0:00:00]} 3. c4 {[%emt 0:00:04]} e6 {[%emt 0:01:40]} 4. Nc3 {[%emt 0:00:07]} dxc4 {[%emt 0:00:05]} 5. e4 {[%emt 0:00:05]} Bb4 {[%emt 0:00:11]} 6. Bxc4 {[%emt 0:00:51]} Nxe4 {[%emt 0:01:15]} 7. O-O {[%emt 0:00:08]} Nd6 {[%emt 0:02:46]} 8. Qa4+ {[%emt 0:13:57]} Nc6 {[%emt 0:01:25]} 9. d5 {[%emt 0:05:30]} exd5 {[%emt 0:10:38]} 10. Nxd5 {[%emt 0:25:20]} Nxc4 {[%emt 0:16:24]} 11. Nxb4 {[%emt 0:01:55]} Nb6 {[%emt 0:02:25]} 12. Qb5 {[%emt 0:16:46]} O-O {[%emt 0:22:18]} 13. Nxc6 {[%emt 0:01:42]} bxc6 {[%emt 0:00:58]} 14. Qxc6 {[%emt 0:00:05]} Qd5 {[%emt 0:11:44]} 15. Qxc7 {[%emt 0:07:20]} Ba6 {[%emt 0:05:23]} 16. Re1 {[%emt 0:01:10]} Rfc8 {[%emt 0:03:20]} 17. Qg3 {[%emt 0:02:25]} Rc6 {[%emt 0:02:51]} 18. Bd2 {[%emt 0:04:47]} Nc4 {[%emt 0:03:06]} 19. Bc3 {[%emt 0:00:50]} Rg6 {[%emt 0:00:09]} 20. Qf4 {[%emt 0:03:16]} Bb7 {[%emt 0:00:37]} 21. Kh1 {[%emt 0:01:00]} Rd8 {[%emt 0:02:40]} 22. b3 {[%emt 0:01:41]} Nb6 {[%emt 0:05:15]} 23. Qe5 {[%emt 0:03:33]} Qc6 {[%emt 0:01:19]} 24. h4 {[%emt 0:02:07]} Rxg2 {[%emt 0:01:55]} 25. Kxg2 {[%emt 0:01:32]} Qxf3+ {[%emt 0:00:06]} 26. Kf1 {[%emt 0:00:04]} Qh3+ {[%emt 0:00:11]} 27. Ke2 {[%emt 0:00:14]} Ba6+ {[%emt 0:00:03]} 28. Qb5 {[%emt 0:00:45]} Bxb5# {[%emt 0:00:08]} 0-1

[Event "18th Charleroi Open-A 2019"]
[Site "Charleroi"]
[Date "2019.07.30"]
[Round "5.32"]
[White "Lui, Eric"]
[Black "Guion, Geoffrey"]
[Result "0-1"]
[ECO "C11"]
[WhiteElo "1884"]
[BlackElo "2006"]
[Annotator "NA"]
[PlyCount "22"]
[EventDate "2019.07.22"]
[EventType "swiss"]
[EventCountry "BEL"]
[SourceTitle "playchess.com"]
[Source "ChessBase"]
[SourceQuality "1"]
[TimeControl "40/5400+30:1800+30"]

1. e4 {[%emt 0:00:00]} e6 {[%emt 0:00:00]} 2. d4 {[%emt 0:00:14]} d5 {[%emt 0:00:00]} 3. Nc3 {[%emt 0:02:06]} Nf6 {[%emt 0:00:00]} 4. e5 {[%emt 0:00:38]} Nfd7 {[%emt 0:00:00]} 5. f4 {[%emt 0:00:12]} c5 {[%emt 0:00:00]} 6. Nf3 {[%emt 0:00:29]} Nc6 {[%emt 0:00:07]} 7. Be3 {[%emt 0:00:21]} cxd4 {[%emt 0:00:06]} 8. Nxd4 {[%emt 0:00:49]} Bc5 {[%emt 0:00:08]} 9. Qd2 {[%emt 0:05:43]} a6 {[%emt 0:01:17]} 10. Bd3 {[%emt 0:01:26]} Bxd4 {[%emt 1:33:22]} 11. Bf1 Bc5 0-1

[Event "18th Charleroi Open-A 2019"]
[Site "Charleroi"]
[Date "2019.07.30"]
[Round "5.33"]
[White "Oupindrin, Narayanin"]
[Black "Denivet, Axel"]
[Result "1/2-1/2"]
[ECO "C79"]
[WhiteElo "2056"]
[BlackElo "1932"]
[Annotator "NA"]
[PlyCount "86"]
[EventDate "2019.07.22"]
[EventType "swiss"]
[EventCountry "BEL"]
[SourceTitle "playchess.com"]
[Source "ChessBase"]
[SourceQuality "1"]
[TimeControl "40/5400+30:1800+30"]

1. e4 {[%emt 0:00:00]} e5 {[%emt 0:00:00]} 2. Nf3 {[%emt 0:00:00]} Nc6 {[%emt 0:00:00]} 3. Bb5 {[%emt 0:00:02]} a6 {[%emt 0:00:09]} 4. Ba4 {[%emt 0:00:25]} Nf6 {[%emt 0:00:24]} 5. O-O {[%emt 0:00:22]} d6 {[%emt 0:02:00]} 6. d4 {[%emt 0:01:40]} b5 {[%emt 0:01:12]} 7. dxe5 {[%emt 0:01:01]} Nxe5 {[%emt 0:04:50]} 8. Nxe5 {[%emt 0:01:18]} bxa4 {[%emt 0:03:42]} 9. Nf3 {[%emt 0:01:30]} Be7 {[%emt 0:01:00]} 10. Nc3 {[%emt 0:02:01]} O-O {[%emt 0:01:04]} 11. e5 {[%emt 0:03:37]} Ng4 {[%emt 0:02:37]} 12. exd6 {[%emt 0:03:54]} Bxd6 {[%emt 0:00:42]} 13. Ne4 {[%emt 0:03:31]} Nxh2 {[%emt 0:09:24]} 14. Nxd6 {[%emt 0:03:59]} Nxf1 {[%emt 0:00:44]} 15. Kxf1 {[%emt 0:02:26]} cxd6 {[%emt 0:02:58]} 16. Bf4 {[%emt 0:00:13]} Qf6 {[%emt 0:06:33]} 17. Qd4 {[%emt 0:01:17]} Qxd4 {[%emt 0:01:47]} 18. Nxd4 {[%emt 0:00:07]} d5 {[%emt 0:02:59]} 19. Re1 {[%emt 0:01:15]} Bd7 {[%emt 0:04:19]} 20. Re7 {[%emt 0:00:57]} Bb5+ {[%emt 0:04:33]} 21. Kg1 {[%emt 0:01:17]} Rfe8 {[%emt 0:02:13]} 22. Rb7 {[%emt 0:00:45]} Re4 {[%emt 0:01:35]} 23. Be3 {[%emt 0:00:49]} Rae8 {[%emt 0:03:22]} 24. c3 {[%emt 0:03:15]} Bc4 {[%emt 0:10:09]} 25. a3 {[%emt 0:06:47]} g6 {[%emt 0:02:59]} 26. Nc6 {[%emt 0:02:33]} f5 {[%emt 0:03:55]} 27. Bd4 {[%emt 0:04:45]} R4e6 {[%emt 0:11:09]} 28. Rg7+ {[%emt 0:01:22]} Kf8 {[%emt 0:01:20]} 29. Rc7 {[%emt 0:00:44]} Bb5 {[%emt 0:02:06]} 30. Bc5+ {[%emt 0:00:50]} Kg8 {[%emt 0:01:24]} 31. Ne7+ {[%emt 0:01:22]} R8xe7 {[%emt 0:01:34]} 32. Rxe7 {[%emt 0:01:02]} Rxe7 {[%emt 0:00:35]} 33. Bxe7 {[%emt 0:00:08]} Kf7 {[%emt 0:00:14]} 34. Bc5 {[%emt 0:00:11]} Ke6 {[%emt 0:00:48]} 35. f4 {[%emt 0:00:16]} d4 {[%emt 0:01:26]} 36. cxd4 {[%emt 0:01:44]} Kd5 {[%emt 0:00:14]} 37. Kf2 {[%emt 0:00:17]} Kc4 {[%emt 0:01:14]} 38. Ke3 {[%emt 0:00:24]} Bc6 {[%emt 0:00:35]} 39. g3 {[%emt 0:00:49]} Bd5 {[%emt 0:01:28]} 40. Bb4 {[%emt 0:00:30]} Kb3 {[%emt 0:00:44]} 41. Bc3 {[%emt 0:30:20]} Kc2 {[%emt 0:31:02]} 42. Ke2 {[%emt 0:00:23]} Bc4+ {[%emt 0:05:58]} 43. Ke3 {[%emt 0:51:22]} Kd1 {[%emt 0:04:29]} 1/2-1/2

[Event "18th Charleroi Open-A 2019"]
[Site "Charleroi"]
[Date "2019.07.30"]
[Round "5.34"]
[White "Watelet, Sylvain"]
[Black "Verhalle, Elias"]
[Result "1/2-1/2"]
[ECO "E61"]
[WhiteElo "1961"]
[BlackElo "1983"]
[Annotator "NA"]
[PlyCount "41"]
[EventDate "2019.07.22"]
[EventType "swiss"]
[EventCountry "BEL"]
[SourceTitle "playchess.com"]
[Source "ChessBase"]
[SourceQuality "1"]
[TimeControl "40/5400+30:1800+30"]

1. d4 {[%emt 0:00:00]} Nf6 {[%emt 0:01:17]} 2. Nf3 {[%emt 0:00:02]} b6 {[%emt 0:00:18]} 3. Bf4 {[%emt 0:00:31]} Bb7 {[%emt 0:00:13]} 4. e3 {[%emt 0:00:19]} g6 {[%emt 0:00:06]} 5. c4 {[%emt 0:01:21]} Bg7 {[%emt 0:00:26]} 6. Nc3 {[%emt 0:00:25]} d6 {[%emt 0:00:58]} 7. h3 {[%emt 0:00:22]} Nbd7 {[%emt 0:00:58]} 8. Be2 {[%emt 0:02:42]} O-O {[%emt 0:00:40]} 9. O-O {[%emt 0:00:09]} Re8 {[%emt 0:07:21]} 10. Bh2 {[%emt 0:01:04]} e5 {[%emt 0:00:49]} 11. Rc1 {[%emt 0:13:00]} exd4 {[%emt 0:19:19]} 12. Nxd4 {[%emt 0:00:56]} Ne4 {[%emt 0:04:35]} 13. Nxe4 {[%emt 0:04:29]} Bxe4 {[%emt 0:00:15]} 14. Bf3 {[%emt 0:00:19]} Nf6 {[%emt 0:02:46]} 15. b4 {[%emt 0:05:19]} Bxf3 {[%emt 0:09:50]} 16. Qxf3 {[%emt 0:00:36]} Ne4 {[%emt 0:00:17]} 17. Rfd1 {[%emt 0:00:54]} Qd7 {[%emt 0:14:18]} 18. a3 {[%emt 0:14:52]} a5 {[%emt 0:08:29]} 19. b5 {[%emt 0:00:00]} Qe7 {[%emt 0:00:00]} 20. Rc2 {[%emt 0:00:00]} Rac8 {[%emt 0:01:00]} 21. Kh1 {[%emt 0:00:00]} 1/2-1/2

[Event "18th Charleroi Open-A 2019"]
[Site "Charleroi"]
[Date "2019.07.31"]
[Round "6.5"]
[White "Capone, Nicola"]
[Black "Werner, Ivan"]
[Result "1-0"]
[ECO "D85"]
[WhiteElo "2297"]
[BlackElo "2129"]
[Annotator "NA"]
[PlyCount "115"]
[EventDate "2019.07.22"]
[EventType "swiss"]
[EventCountry "BEL"]
[SourceTitle "playchess.com"]
[Source "ChessBase"]
[SourceQuality "1"]
[TimeControl "40/5400+30:1800+30"]

1. d4 {[%emt 0:10:15]} Nf6 {[%emt 0:01:20]} 2. c4 {[%emt 0:00:04]} g6 {[%emt 0:00:04]} 3. Nc3 {[%emt 0:00:03]} d5 {[%emt 0:00:03]} 4. cxd5 {[%emt 0:00:05]} Nxd5 {[%emt 0:00:04]} 5. e4 {[%emt 0:00:06]} Nxc3 {[%emt 0:00:04]} 6. bxc3 {[%emt 0:00:04]} Bg7 {[%emt 0:00:04]} 7. Be3 {[%emt 0:00:10]} c5 {[%emt 0:00:24]} 8. Nf3 {[%emt 0:00:03]} Qa5 {[%emt 0:03:20]} 9. Qd2 {[%emt 0:01:18]} O-O {[%emt 0:02:18]} 10. Rb1 {[%emt 0:00:49]} cxd4 {[%emt 0:00:41]} 11. cxd4 {[%emt 0:00:06]} Qxd2+ {[%emt 0:00:11]} 12. Kxd2 {[%emt 0:00:04]} Rd8 {[%emt 0:05:04]} 13. Bd3 {[%emt 0:05:25]} Nc6 {[%emt 0:17:31]} 14. d5 {[%emt 0:03:14]} Na5 {[%emt 0:01:05]} 15. Ke2 {[%emt 0:01:33]} e6 {[%emt 0:01:50]} 16. Bg5 {[%emt 0:00:46]} f6 {[%emt 0:04:14]} 17. Bd2 {[%emt 0:00:05]} b6 {[%emt 0:00:15]} 18. Bxa5 {[%emt 0:00:57]} bxa5 {[%emt 0:00:05]} 19. Bc4 {[%emt 0:00:50]} e5 {[%emt 0:01:51]} 20. Nd2 {[%emt 0:05:45]} a4 {[%emt 0:04:31]} 21. Rb4 {[%emt 0:08:31]} Bd7 {[%emt 0:00:32]} 22. Rhb1 {[%emt 0:01:18]} Bf8 {[%emt 0:00:51]} 23. Rb7 {[%emt 0:02:30]} Bd6 {[%emt 0:02:08]} 24. Bd3 {[%emt 0:02:42]} Bc5 {[%emt 0:10:18]} 25. Bb5 {[%emt 0:00:28]} Bc8 {[%emt 0:04:07]} 26. Rc7 {[%emt 0:00:09]} Bd6 {[%emt 0:02:46]} 27. Rc4 {[%emt 0:02:32]} a3 {[%emt 0:10:57]} 28. Bc6 {[%emt 0:01:06]} Ba6 {[%emt 0:00:18]} 29. Bxa8 {[%emt 0:00:09]} Rxa8 {[%emt 0:00:11]} 30. Kd1 {[%emt 0:03:02]} Bxc4 {[%emt 0:01:07]} 31. Nxc4 {[%emt 0:00:06]} Bc5 {[%emt 0:01:33]} 32. f3 {[%emt 0:00:25]} a5 {[%emt 0:02:08]} 33. Rb5 {[%emt 0:00:48]} Bb4 {[%emt 0:00:32]} 34. Kc2 {[%emt 0:00:08]} Rc8 {[%emt 0:00:27]} 35. Kd3 {[%emt 0:01:21]} f5 {[%emt 0:02:15]} 36. d6 {[%emt 0:02:24]} fxe4+ {[%emt 0:04:45]} 37. fxe4 {[%emt 0:00:06]} Rd8 {[%emt 0:01:05]} 38. Rxe5 {[%emt 0:00:33]} Bxd6 {[%emt 0:00:31]} 39. Rd5 {[%emt 0:00:05]} Bc7 {[%emt 0:00:41]} 40. Rxd8+ {[%emt 0:00:05]} Bxd8 {[%emt 0:00:18]} 41. Kd4 {[%emt 0:30:06]} Kf7 {[%emt 0:30:14]} 42. Nxa3 {[%emt 0:03:47]} Ke6 {[%emt 0:01:17]} 43. Nc4 {[%emt 0:00:04]} h5 {[%emt 0:08:18]} 44. a4 {[%emt 0:01:23]} g5 {[%emt 0:00:50]} 45. h3 {[%emt 0:02:29]} g4 {[%emt 0:01:02]} 46. hxg4 {[%emt 0:00:36]} hxg4 {[%emt 0:00:19]} 47. e5 {[%emt 0:09:48]} Bc7 {[%emt 0:01:22]} 48. g3 {[%emt 0:03:20]} Bb8 {[%emt 0:02:59]} 49. Ke4 {[%emt 0:00:07]} Bc7 {[%emt 0:00:12]} 50. Kf4 {[%emt 0:14:44]} Kd5 {[%emt 0:01:40]} 51. Ne3+ {[%emt 0:00:05]} Kc5 {[%emt 0:02:14]} 52. Kf5 {[%emt 0:01:14]} Bd8 {[%emt 0:00:00]} 53. Nxg4 {[%emt 0:00:00]} Kb4 {[%emt 0:00:00]} 54. Ne3 {[%emt 0:00:00]} Kxa4 {[%emt 0:00:00]} 55. Nc4 {[%emt 0:00:00]} Kb5 {[%emt 0:00:00]} 56. Nxa5 {[%emt 0:00:00]} Bxa5 {[%emt 0:00:00]} 57. e6 {[%emt 0:00:00]} Kc6 {[%emt 0:03:25]} 58. Ke5 {[%emt 0:21:07] Kd5} 1-0